[Event "*** Titled Tuesday Blitz"]
[Site "Chess.com"]
[Date "2020.05.12"]
[Round "10"]
[White "Chessmatus"]
[Black "isla88"]
[Result "0-1"]
[WhiteElo "2466"]
[BlackElo "2333"]
[TimeControl "180+1"]
[EndTime "11:52:14 PDT"]
[Termination "isla88 won by resignation"]

1. e4 {[%clk 0:03:00.9]} 1... c5 {[%clk 0:02:58.7]} 2. Nf3 {[%clk 0:02:58.7]}
2... Nc6 {[%clk 0:02:57.4]} 3. d4 {[%clk 0:02:58.1]} 3... cxd4 {[%clk
0:02:56.5]} 4. Nxd4 {[%clk 0:02:59]} 4... e5 {[%clk 0:02:55.7]} 5. Nb5 {[%clk
0:02:58.3]} 5... d6 {[%clk 0:02:53.9]} 6. N1c3 {[%clk 0:02:58.3]} 6... a6 {[%clk
0:02:52.5]} 7. Na3 {[%clk 0:02:58.4]} 7... Be7 {[%clk 0:02:52.3]} 8. Be3 {[%clk
0:02:56.5]} 8... b5 {[%clk 0:02:48.2]} 9. Nd5 {[%clk 0:02:55.1]} 9... Rb8 {[%clk
0:02:34.2]} 10. Nxe7 {[%clk 0:02:49.1]} 10... Ncxe7 {[%clk 0:02:29.3]} 11. c3
{[%clk 0:02:28.2]} 11... Nf6 {[%clk 0:02:22.6]} 12. Bd3 {[%clk 0:02:25.6]} 12...
Bb7 {[%clk 0:02:15.5]} 13. f3 {[%clk 0:02:07.6]} 13... d5 {[%clk 0:02:14.3]} 14.
exd5 {[%clk 0:02:00.5]} 14... Nexd5 {[%clk 0:02:10.1]} 15. Bg5 {[%clk 0:01:45]}
15... Qb6 {[%clk 0:02:02.1]} 16. Qe2 {[%clk 0:01:42.6]} 16... O-O {[%clk
0:01:52]} 17. Nc2 {[%clk 0:01:28.4]} 17... h6 {[%clk 0:01:40.1]} 18. Bxf6 {[%clk
0:01:23.5]} 18... Nf4 {[%clk 0:01:39.5]} 19. Qf1 {[%clk 0:01:17]} 19... Qxf6
{[%clk 0:01:34.4]} 20. O-O-O {[%clk 0:01:14]} 20... Bd5 {[%clk 0:01:26.3]} 21.
Nb4 {[%clk 0:01:05.3]} 21... Qe6 {[%clk 0:01:13.7]} 22. Bb1 {[%clk 0:00:42]}
22... Bc4 {[%clk 0:01:05.8]} 23. Qe1 {[%clk 0:00:28.6]} 23... a5 {[%clk
0:01:05]} 24. g3 {[%clk 0:00:18.3]} 24... Ne2+ {[%clk 0:01:04.7]} 0-1

[Event "*** Titled Tuesday Blitz"]
[Site "Chess.com"]
[Date "2020.05.12"]
[Round "10"]
[White "djano"]
[Black "AndrewDGreen"]
[Result "1-0"]
[WhiteElo "2450"]
[BlackElo "2301"]
[TimeControl "180+1"]
[EndTime "11:52:14 PDT"]
[Termination "djano won by resignation"]

1. d4 {[%clk 0:03:00.9]} 1... Nf6 {[%clk 0:02:56.9]} 2. Bf4 {[%clk 0:03:00.1]}
2... g6 {[%clk 0:02:56.7]} 3. Nc3 {[%clk 0:03:00.3]} 3... d5 {[%clk 0:02:49.5]}
4. Nf3 {[%clk 0:02:58.8]} 4... Bg7 {[%clk 0:02:46.4]} 5. Qd2 {[%clk 0:02:58.8]}
5... O-O {[%clk 0:02:44.4]} 6. Bh6 {[%clk 0:02:58.3]} 6... Ne4 {[%clk
0:02:43.8]} 7. Nxe4 {[%clk 0:02:57.9]} 7... dxe4 {[%clk 0:02:44.7]} 8. Bxg7
{[%clk 0:02:56.3]} 8... Kxg7 {[%clk 0:02:45.6]} 9. Ne5 {[%clk 0:02:55.3]} 9...
Nd7 {[%clk 0:02:39.5]} 10. f4 {[%clk 0:02:50.1]} 10... Nxe5 {[%clk 0:02:38]} 11.
fxe5 {[%clk 0:02:49.9]} 11... f6 {[%clk 0:02:28.4]} 12. exf6+ {[%clk 0:02:49.6]}
12... exf6 {[%clk 0:02:28.4]} 13. e3 {[%clk 0:02:49.3]} 13... Be6 {[%clk
0:02:20.8]} 14. Be2 {[%clk 0:02:49.1]} 14... Qd6 {[%clk 0:02:07.8]} 15. O-O
{[%clk 0:02:48.3]} 15... Rad8 {[%clk 0:02:06.1]} 16. Rf4 {[%clk 0:02:46.5]}
16... f5 {[%clk 0:02:05.6]} 17. c4 {[%clk 0:02:41.1]} 17... g5 {[%clk
0:01:54.6]} 18. Rff1 {[%clk 0:02:40.9]} 18... Bg8 {[%clk 0:01:48.1]} 19. Qc3
{[%clk 0:02:34.2]} 19... c5 {[%clk 0:01:32]} 20. dxc5+ {[%clk 0:02:30.6]} 20...
Qf6 {[%clk 0:01:30.6]} 21. Qxf6+ {[%clk 0:02:18.1]} 21... Kxf6 {[%clk
0:01:30.9]} 22. Rad1 {[%clk 0:02:12.4]} 22... Ke5 {[%clk 0:01:27.6]} 23. b4
{[%clk 0:02:08.1]} 23... Be6 {[%clk 0:01:27.1]} 24. g3 {[%clk 0:02:06.1]} 24...
Rxd1 {[%clk 0:01:11.1]} 25. Rxd1 {[%clk 0:02:04.4]} 25... f4 {[%clk 0:01:11.7]}
26. exf4+ {[%clk 0:02:03]} 26... gxf4 {[%clk 0:01:12.6]} 27. gxf4+ {[%clk
0:02:03.3]} 27... Rxf4 {[%clk 0:01:11.2]} 28. b5 {[%clk 0:01:53]} 28... e3
{[%clk 0:01:10.3]} 29. c6 {[%clk 0:01:52.5]} 29... bxc6 {[%clk 0:01:07.4]} 30.
bxc6 {[%clk 0:01:53.4]} 30... Rf2 {[%clk 0:01:05.7]} 31. Bf1 {[%clk 0:01:38.8]}
31... e2 {[%clk 0:00:47.4]} 32. Bxe2 {[%clk 0:01:19.8]} 32... Rxe2 {[%clk
0:00:47.2]} 33. c7 {[%clk 0:01:20.3]} 33... Rc2 {[%clk 0:00:42.8]} 34. Re1+
{[%clk 0:01:20.5]} 34... Kd6 {[%clk 0:00:34.7]} 35. Rxe6+ {[%clk 0:01:20.9]}
35... Kxe6 {[%clk 0:00:35.3]} 36. c8=Q+ {[%clk 0:01:19.9]} 1-0

[Event "*** Titled Tuesday Blitz"]
[Site "Chess.com"]
[Date "2020.05.12"]
[Round "10"]
[White "StephenDedalus83"]
[Black "Reader777"]
[Result "1-0"]
[WhiteElo "2735"]
[BlackElo "2599"]
[TimeControl "180+1"]
[EndTime "11:52:16 PDT"]
[Termination "StephenDedalus83 won by resignation"]

1. e4 {[%clk 0:03:00.9]} 1... c5 {[%clk 0:02:59.9]} 2. Nf3 {[%clk 0:03:00.7]}
2... d6 {[%clk 0:03:00]} 3. d4 {[%clk 0:03:01.1]} 3... cxd4 {[%clk 0:03:00]} 4.
Nxd4 {[%clk 0:03:02]} 4... Nf6 {[%clk 0:02:59.5]} 5. Nc3 {[%clk 0:03:02.5]} 5...
e6 {[%clk 0:02:59.2]} 6. g4 {[%clk 0:03:01.2]} 6... h6 {[%clk 0:02:58.6]} 7. h3
{[%clk 0:03:00.5]} 7... Be7 {[%clk 0:02:56.1]} 8. Be3 {[%clk 0:02:58.3]} 8...
Nc6 {[%clk 0:02:55.4]} 9. Bg2 {[%clk 0:02:57.4]} 9... Ne5 {[%clk 0:02:55.3]} 10.
Qe2 {[%clk 0:02:56.7]} 10... g5 {[%clk 0:02:55.4]} 11. f4 {[%clk 0:02:54.9]}
11... gxf4 {[%clk 0:02:54.8]} 12. Bxf4 {[%clk 0:02:55.8]} 12... Bd7 {[%clk
0:02:53.8]} 13. O-O-O {[%clk 0:02:54.3]} 13... a6 {[%clk 0:02:51.2]} 14. Nf3
{[%clk 0:02:48.1]} 14... Qc7 {[%clk 0:02:46.1]} 15. Nxe5 {[%clk 0:02:45.2]}
15... dxe5 {[%clk 0:02:45.7]} 16. Be3 {[%clk 0:02:45.7]} 16... Bc6 {[%clk
0:02:43.4]} 17. Rhf1 {[%clk 0:02:26.9]} 17... b5 {[%clk 0:02:41.8]} 18. Qf2
{[%clk 0:02:26.7]} 18... b4 {[%clk 0:02:34.7]} 19. Nd5 {[%clk 0:02:21.4]} 19...
exd5 {[%clk 0:01:28.1]} 20. exd5 {[%clk 0:02:21]} 20... Bxd5 {[%clk 0:01:19]}
21. Bxd5 {[%clk 0:02:19.4]} 21... Rd8 {[%clk 0:01:19.2]} 22. Bb6 {[%clk
0:02:18.3]} 22... Qc8 {[%clk 0:01:12.9]} 23. Bxd8 {[%clk 0:02:17.5]} 23... Bxd8
{[%clk 0:01:13.8]} 24. Qf5 {[%clk 0:01:51.9]} 24... Qc7 {[%clk 0:01:10.1]} 25.
Bb3 {[%clk 0:01:44.8]} 25... Be7 {[%clk 0:01:05.2]} 26. Ba4+ {[%clk 0:01:41.4]}
26... Kf8 {[%clk 0:01:04.8]} 27. Rd7 {[%clk 0:01:40.5]} 27... Qb6 {[%clk
0:00:51.1]} 28. Qxe5 {[%clk 0:01:26.3]} 28... Qe6 {[%clk 0:00:46.5]} 29. Qxe6
{[%clk 0:01:23]} 29... fxe6 {[%clk 0:00:47.4]} 30. Ra7 {[%clk 0:01:22.9]} 30...
Kf7 {[%clk 0:00:46.6]} 31. Rxa6 {[%clk 0:01:20.6]} 31... Bc5 {[%clk 0:00:46.4]}
32. Bb3 {[%clk 0:01:19.8]} 32... Re8 {[%clk 0:00:45.4]} 33. Rc6 {[%clk
0:01:16.8]} 33... Be3+ {[%clk 0:00:44.7]} 34. Kb1 {[%clk 0:01:16.8]} 34... Re7
{[%clk 0:00:41.8]} 35. a4 {[%clk 0:01:15.4]} 35... bxa3 {[%clk 0:00:38.3]} 36.
bxa3 {[%clk 0:01:15.3]} 36... Kg7 {[%clk 0:00:38.3]} 37. Rxe6 {[%clk 0:01:14.1]}
1-0

[Event "*** Titled Tuesday Blitz"]
[Site "Chess.com"]
[Date "2020.05.12"]
[Round "10"]
[White "Hippotaner"]
[Black "Harsha_Bharathakoti"]
[Result "0-1"]
[WhiteElo "2380"]
[BlackElo "2784"]
[TimeControl "180+1"]
[EndTime "11:52:16 PDT"]
[Termination "Harsha_Bharathakoti won by resignation"]

1. e4 {[%clk 0:03:00.9]} 1... c5 {[%clk 0:02:49]} 2. Nf3 {[%clk 0:02:59.7]} 2...
d6 {[%clk 0:02:49.6]} 3. g3 {[%clk 0:02:59.2]} 3... Nf6 {[%clk 0:02:49.5]} 4. d3
{[%clk 0:02:58.8]} 4... g6 {[%clk 0:02:50.1]} 5. Bg2 {[%clk 0:02:58]} 5... Bg7
{[%clk 0:02:50.9]} 6. O-O {[%clk 0:02:58.2]} 6... O-O {[%clk 0:02:51.6]} 7. h3
{[%clk 0:02:57.8]} 7... Nc6 {[%clk 0:02:52.3]} 8. Be3 {[%clk 0:02:57.1]} 8...
Rb8 {[%clk 0:02:52.8]} 9. c3 {[%clk 0:02:56.9]} 9... b5 {[%clk 0:02:53.2]} 10.
e5 {[%clk 0:02:57.4]} 10... dxe5 {[%clk 0:02:50.7]} 11. Bxc5 {[%clk 0:02:56]}
11... Bb7 {[%clk 0:02:45.3]} 12. Re1 {[%clk 0:02:51.5]} 12... Qc7 {[%clk
0:02:45.5]} 13. Nbd2 {[%clk 0:02:50.2]} 13... Rbd8 {[%clk 0:02:43.1]} 14. Qe2
{[%clk 0:02:48.4]} 14... Nd7 {[%clk 0:02:40.9]} 15. Be3 {[%clk 0:02:37.7]} 15...
Nb6 {[%clk 0:02:37.5]} 16. Bxb6 {[%clk 0:02:36.8]} 16... Qxb6 {[%clk 0:02:36.4]}
17. Ne4 {[%clk 0:02:36.5]} 17... h6 {[%clk 0:02:34.5]} 18. g4 {[%clk 0:02:27]}
18... Rd7 {[%clk 0:02:25.2]} 19. Rad1 {[%clk 0:02:25.9]} 19... Nd8 {[%clk
0:02:21.9]} 20. b4 {[%clk 0:02:23.4]} 20... Ne6 {[%clk 0:02:21.6]} 21. Nc5
{[%clk 0:02:13.6]} 21... Nxc5 {[%clk 0:02:20.6]} 22. bxc5 {[%clk 0:02:14]} 22...
Qxc5 {[%clk 0:02:21.5]} 23. Nxe5 {[%clk 0:02:14.6]} 23... Bxe5 {[%clk
0:02:15.5]} 24. Qxe5 {[%clk 0:02:11.2]} 24... Qxe5 {[%clk 0:02:06]} 25. Rxe5
{[%clk 0:02:10.6]} 25... Bxg2 {[%clk 0:02:06.9]} 26. Kxg2 {[%clk 0:02:10.8]}
26... a6 {[%clk 0:02:07.8]} 27. Rc5 {[%clk 0:02:08.1]} 27... Rb8 {[%clk
0:01:59.7]} 28. a3 {[%clk 0:02:07.5]} 28... Kg7 {[%clk 0:01:56.9]} 29. f4 {[%clk
0:02:07.4]} 29... Rb6 {[%clk 0:01:57.5]} 30. Kf3 {[%clk 0:02:07.3]} 30... e6
{[%clk 0:01:56.3]} 31. d4 {[%clk 0:02:07.6]} 31... Rdd6 {[%clk 0:01:51.9]} 32.
h4 {[%clk 0:02:02.5]} 32... Rbc6 {[%clk 0:01:52.4]} 33. Rxc6 {[%clk 0:02:00.3]}
33... Rxc6 {[%clk 0:01:53.3]} 34. Rd3 {[%clk 0:02:00.5]} 34... Kf6 {[%clk
0:01:52.8]} 35. Ke4 {[%clk 0:01:57.7]} 35... Rc4 {[%clk 0:01:53]} 36. g5+ {[%clk
0:01:57.7]} 36... hxg5 {[%clk 0:01:53.9]} 37. fxg5+ {[%clk 0:01:54.4]} 37... Ke7
{[%clk 0:01:54.8]} 38. Ke5 {[%clk 0:01:46.9]} 38... Ra4 {[%clk 0:01:54.8]} 39.
d5 {[%clk 0:01:47.4]} 39... exd5 {[%clk 0:01:52.2]} 40. Kxd5 {[%clk 0:01:47.6]}
40... Rxa3 {[%clk 0:01:51.2]} 41. Re3+ {[%clk 0:01:47.9]} 41... Kf8 {[%clk
0:01:49.1]} 42. Kd4 {[%clk 0:01:35.6]} 42... Ra4+ {[%clk 0:01:49.2]} 43. Kc5
{[%clk 0:01:32.3]} 43... Rxh4 {[%clk 0:01:50.1]} 44. Kb6 {[%clk 0:01:32.5]}
44... Ra4 {[%clk 0:01:50.4]} 45. Kc6 {[%clk 0:01:28.9]} 45... Kg7 {[%clk
0:01:39]} 46. Kd7 {[%clk 0:01:23.4]} 46... Rc4 {[%clk 0:01:33.3]} 47. Ke8 {[%clk
0:01:19.7]} 47... Rc5 {[%clk 0:01:30.1]} 48. Re7 {[%clk 0:01:11.4]} 48... Rc8+
{[%clk 0:01:30.2]} 49. Kd7 {[%clk 0:01:11.3]} 49... Rxc3 {[%clk 0:01:31.1]} 50.
Ke8 {[%clk 0:01:08.7]} 50... Rc8+ {[%clk 0:01:30.5]} 51. Kd7 {[%clk 0:01:08.6]}
51... Rc5 {[%clk 0:01:31.4]} 52. Ke8 {[%clk 0:01:08]} 52... Rf5 {[%clk
0:01:31.6]} 53. Kd7 {[%clk 0:01:07.6]} 53... b4 {[%clk 0:01:27.8]} 0-1

[Event "*** Titled Tuesday Blitz"]
[Site "Chess.com"]
[Date "2020.05.12"]
[Round "10"]
[White "Mimsychess"]
[Black "Hanging_pointer"]
[Result "0-1"]
[WhiteElo "2331"]
[BlackElo "2588"]
[TimeControl "180+1"]
[EndTime "11:52:17 PDT"]
[Termination "Hanging_pointer won by resignation"]

1. c4 {[%clk 0:03:00.9]} 1... c6 {[%clk 0:02:56.7]} 2. Nf3 {[%clk 0:02:58.8]}
2... d5 {[%clk 0:02:57.6]} 3. g3 {[%clk 0:02:56.3]} 3... Nf6 {[%clk 0:02:58]} 4.
Bg2 {[%clk 0:02:56.2]} 4... Bf5 {[%clk 0:02:57.8]} 5. cxd5 {[%clk 0:02:48.3]}
5... cxd5 {[%clk 0:02:58.7]} 6. Qb3 {[%clk 0:02:47.9]} 6... Bc8 {[%clk
0:02:56.2]} 7. Nc3 {[%clk 0:02:45]} 7... e6 {[%clk 0:02:56.2]} 8. O-O {[%clk
0:02:39.8]} 8... Be7 {[%clk 0:02:56.5]} 9. d3 {[%clk 0:02:38.3]} 9... O-O {[%clk
0:02:56.9]} 10. e4 {[%clk 0:02:38.4]} 10... d4 {[%clk 0:02:50.2]} 11. Ne2 {[%clk
0:02:35.6]} 11... Nc6 {[%clk 0:02:50.6]} 12. Bd2 {[%clk 0:02:34.7]} 12... e5
{[%clk 0:02:49.8]} 13. a3 {[%clk 0:02:28.2]} 13... Be6 {[%clk 0:02:48.5]} 14.
Qd1 {[%clk 0:02:28.3]} 14... a5 {[%clk 0:02:46.8]} 15. Ng5 {[%clk 0:02:27.7]}
15... Bg4 {[%clk 0:02:40.8]} 16. h3 {[%clk 0:02:19.3]} 16... Bd7 {[%clk
0:02:36.4]} 17. f4 {[%clk 0:02:16.7]} 17... Bd6 {[%clk 0:02:29.1]} 18. Rc1
{[%clk 0:02:03.1]} 18... h6 {[%clk 0:02:21.6]} 19. Nf3 {[%clk 0:02:02.5]} 19...
Qe7 {[%clk 0:02:21.9]} 20. f5 {[%clk 0:01:57.6]} 20... a4 {[%clk 0:02:13.4]} 21.
g4 {[%clk 0:01:57]} 21... Na5 {[%clk 0:02:11]} 22. g5 {[%clk 0:01:52.1]} 22...
hxg5 {[%clk 0:02:07.9]} 23. Bxg5 {[%clk 0:01:53]} 23... Nb3 {[%clk 0:01:14.7]}
24. Qe1 {[%clk 0:01:49.5]} 24... Nxc1 {[%clk 0:01:12]} 25. Nxc1 {[%clk
0:01:39.1]} 25... Rfc8 {[%clk 0:01:09]} 26. Qh4 {[%clk 0:01:36.7]} 26... Rc2
{[%clk 0:01:05.4]} 27. Nh2 {[%clk 0:01:32.4]} 27... Qd8 {[%clk 0:00:59.7]} 28.
Ng4 {[%clk 0:01:30.6]} 28... Be7 {[%clk 0:00:56.5]} 29. Nxe5 {[%clk 0:01:30.6]}
29... Qc7 {[%clk 0:00:54.8]} 30. Ng6 {[%clk 0:01:21.3]} 30... fxg6 {[%clk
0:00:50.7]} 31. fxg6 {[%clk 0:01:22.2]} 31... Qe5 {[%clk 0:00:45.8]} 32. Bxf6
{[%clk 0:01:10.3]} 32... Bxf6 {[%clk 0:00:42.7]} 33. Qh7+ {[%clk 0:01:10.4]}
33... Kf8 {[%clk 0:00:42.2]} 34. Qh8+ {[%clk 0:01:11.3]} 34... Ke7 {[%clk
0:00:42.4]} 35. Qxa8 {[%clk 0:01:10.1]} 35... Qg3 {[%clk 0:00:42.2]} 0-1

[Event "*** Titled Tuesday Blitz"]
[Site "Chess.com"]
[Date "2020.05.12"]
[Round "10"]
[White "vovachesss"]
[Black "Grineva_Marianna"]
[Result "1-0"]
[WhiteElo "2596"]
[BlackElo "2153"]
[TimeControl "180+1"]
[EndTime "11:52:22 PDT"]
[Termination "vovachesss won by resignation"]

1. d4 {[%clk 0:03:00.9]} 1... d6 {[%clk 0:02:57.7]} 2. h4 {[%clk 0:02:59.5]}
2... Nf6 {[%clk 0:02:55.9]} 3. h5 {[%clk 0:02:59.7]} 3... h6 {[%clk 0:02:56.4]}
4. Nc3 {[%clk 0:02:58.9]} 4... c6 {[%clk 0:02:47.3]} 5. e4 {[%clk 0:02:58.4]}
5... Nbd7 {[%clk 0:02:45.3]} 6. f4 {[%clk 0:02:58.2]} 6... e6 {[%clk 0:02:43.2]}
7. Nf3 {[%clk 0:02:59.1]} 7... Be7 {[%clk 0:02:43.4]} 8. e5 {[%clk 0:02:57.3]}
8... Nd5 {[%clk 0:02:33.1]} 9. Ne4 {[%clk 0:02:57.1]} 9... dxe5 {[%clk 0:02:28]}
10. fxe5 {[%clk 0:02:54.6]} 10... O-O {[%clk 0:02:21.8]} 11. c4 {[%clk
0:02:52.5]} 11... Nb4 {[%clk 0:02:17.3]} 12. a3 {[%clk 0:02:52.3]} 12... Na6
{[%clk 0:02:16.8]} 13. c5 {[%clk 0:02:51.7]} 13... b6 {[%clk 0:02:13.3]} 14. Qa4
{[%clk 0:02:44.5]} 14... Ndb8 {[%clk 0:02:07.4]} 15. b4 {[%clk 0:02:41.8]} 15...
Nc7 {[%clk 0:02:01]} 16. Bd3 {[%clk 0:02:38.6]} 16... Ba6 {[%clk 0:01:58.8]} 17.
Bb1 {[%clk 0:02:35.1]} 17... Bb5 {[%clk 0:01:57.7]} 18. Qc2 {[%clk 0:02:35.1]}
18... f5 {[%clk 0:01:40.3]} 19. exf6 {[%clk 0:02:35.3]} 19... Bxf6 {[%clk
0:01:39]} 20. Nd6 {[%clk 0:02:35.5]} 20... Bh4+ {[%clk 0:01:20.3]} 21. Rxh4
{[%clk 0:02:33.6]} 21... Qxh4+ {[%clk 0:01:06.6]} 22. Nxh4 {[%clk 0:02:28]}
22... Rf1+ {[%clk 0:01:06.1]} 23. Kd2 {[%clk 0:02:28.4]} 23... Rf2+ {[%clk
0:01:06.2]} 24. Kc3 {[%clk 0:02:28.3]} 24... Rxc2+ {[%clk 0:01:06.7]} 25. Bxc2
{[%clk 0:02:28.8]} 25... Nd5+ {[%clk 0:01:05.9]} 26. Kb2 {[%clk 0:02:26.9]}
26... bxc5 {[%clk 0:01:03.2]} 27. dxc5 {[%clk 0:02:25.4]} 27... Nd7 {[%clk
0:00:59.9]} 28. Ng6 {[%clk 0:02:25.3]} 28... N7f6 {[%clk 0:00:56.5]} 29. Bd2
{[%clk 0:02:23.2]} 29... Be2 {[%clk 0:00:55]} 30. Ne5 {[%clk 0:02:19]} 30...
Bxh5 {[%clk 0:00:50.3]} 31. Nxc6 {[%clk 0:02:19]} 31... Be2 {[%clk 0:00:39.5]}
32. Nd4 {[%clk 0:02:18]} 32... Bg4 {[%clk 0:00:37.4]} 33. b5 {[%clk 0:02:12.8]}
33... Rb8 {[%clk 0:00:36.9]} 34. c6 {[%clk 0:02:12.5]} 34... Nc7 {[%clk
0:00:35.8]} 35. a4 {[%clk 0:02:12]} 35... Nfd5 {[%clk 0:00:35]} 36. Ba5 {[%clk
0:02:11.8]} 36... e5 {[%clk 0:00:34.8]} 37. Nb3 {[%clk 0:02:11.1]} 37... Ne8
{[%clk 0:00:25.9]} 38. Nxe8 {[%clk 0:02:10.3]} 38... Rxe8 {[%clk 0:00:26.7]} 39.
Bd3 {[%clk 0:02:08.7]} 39... Kh8 {[%clk 0:00:21.7]} 40. Bc4 {[%clk 0:02:08]}
40... Nb6 {[%clk 0:00:21.9]} 41. Bxb6 {[%clk 0:02:08]} 41... axb6 {[%clk
0:00:22.8]} 42. a5 {[%clk 0:02:08.2]} 42... bxa5 {[%clk 0:00:22.2]} 43. b6
{[%clk 0:02:08.8]} 43... e4 {[%clk 0:00:22.8]} 44. b7 {[%clk 0:02:08.6]} 44...
e3 {[%clk 0:00:20.5]} 45. c7 {[%clk 0:02:08.7]} 45... a4 {[%clk 0:00:16.1]} 46.
b8=Q {[%clk 0:02:09.6]} 46... Rc8 {[%clk 0:00:13.6]} 47. Rxa4 {[%clk 0:02:06.1]}
47... e2 {[%clk 0:00:13]} 48. Bxe2 {[%clk 0:02:07]} 48... Bd7 {[%clk 0:00:11.6]}
49. Ra8 {[%clk 0:02:06.4]} 49... Kh7 {[%clk 0:00:11.3]} 50. Bd3+ {[%clk
0:02:06.6]} 50... g6 {[%clk 0:00:11]} 51. Qxc8 {[%clk 0:02:06.9]} 51... Bxc8
{[%clk 0:00:11.1]} 52. Rxc8 {[%clk 0:02:07.8]} 52... Kg7 {[%clk 0:00:11.5]} 53.
Rd8 {[%clk 0:02:08]} 1-0

[Event "*** Titled Tuesday Blitz"]
[Site "Chess.com"]
[Date "2020.05.12"]
[Round "10"]
[White "Oglob71"]
[Black "diablanni"]
[Result "1-0"]
[WhiteElo "2489"]
[BlackElo "2312"]
[TimeControl "180+1"]
[EndTime "11:52:24 PDT"]
[Termination "Oglob71 won by checkmate"]

1. f3 {[%clk 0:02:57.5]} 1... e5 {[%clk 0:02:36]} 2. Nh3 {[%clk 0:02:55.6]} 2...
d5 {[%clk 0:02:34.4]} 3. Nf2 {[%clk 0:02:56]} 3... Nf6 {[%clk 0:02:33.9]} 4. g3
{[%clk 0:02:55.9]} 4... Bc5 {[%clk 0:02:32.9]} 5. Bg2 {[%clk 0:02:55]} 5... O-O
{[%clk 0:02:33]} 6. O-O {[%clk 0:02:54.7]} 6... Re8 {[%clk 0:02:26.4]} 7. c3
{[%clk 0:02:54.7]} 7... Bb6 {[%clk 0:02:25.1]} 8. a4 {[%clk 0:02:51.4]} 8... c5
{[%clk 0:02:24]} 9. e3 {[%clk 0:02:46.3]} 9... Nc6 {[%clk 0:02:19.6]} 10. d3
{[%clk 0:02:44]} 10... Bf5 {[%clk 0:02:07.4]} 11. Na3 {[%clk 0:02:42.3]} 11...
a6 {[%clk 0:02:04.3]} 12. Nc2 {[%clk 0:02:41.5]} 12... Qe7 {[%clk 0:01:53.9]}
13. Re1 {[%clk 0:02:39.4]} 13... Rad8 {[%clk 0:01:52.9]} 14. Qe2 {[%clk
0:02:37.6]} 14... Ba7 {[%clk 0:01:51.1]} 15. Bd2 {[%clk 0:02:31.9]} 15... e4
{[%clk 0:01:49.9]} 16. fxe4 {[%clk 0:02:29.9]} 16... dxe4 {[%clk 0:01:49.2]} 17.
d4 {[%clk 0:02:30.4]} 17... Bg6 {[%clk 0:01:43.9]} 18. b4 {[%clk 0:02:22.5]}
18... cxb4 {[%clk 0:01:38.5]} 19. cxb4 {[%clk 0:02:22.6]} 19... Nd5 {[%clk
0:01:35.9]} 20. b5 {[%clk 0:02:22.7]} 20... Ncb4 {[%clk 0:01:32.5]} 21. Nxb4
{[%clk 0:02:20.3]} 21... Nxb4 {[%clk 0:01:32.4]} 22. Reb1 {[%clk 0:02:17.8]}
22... Nd3 {[%clk 0:01:28.5]} 23. b6 {[%clk 0:02:17.1]} 23... Bb8 {[%clk
0:01:26.8]} 24. Nh3 {[%clk 0:02:12.2]} 24... Rc8 {[%clk 0:01:23.3]} 25. Ra2
{[%clk 0:02:05.9]} 25... Rc4 {[%clk 0:01:15.9]} 26. Nf4 {[%clk 0:02:04.9]} 26...
Bxf4 {[%clk 0:01:14.5]} 27. gxf4 {[%clk 0:02:04.1]} 27... f5 {[%clk 0:01:13.2]}
28. Be1 {[%clk 0:01:54.6]} 28... Rec8 {[%clk 0:01:12.7]} 29. Bg3 {[%clk
0:01:52.3]} 29... Rc1+ {[%clk 0:01:09.6]} 30. Rxc1 {[%clk 0:01:51.9]} 30...
Rxc1+ {[%clk 0:01:08.9]} 31. Bf1 {[%clk 0:01:51.1]} 31... Qe8 {[%clk 0:01:00.5]}
32. Rc2 {[%clk 0:01:49.8]} 32... Bh5 {[%clk 0:00:40.3]} 33. Qd2 {[%clk
0:01:43.9]} 33... Rd1 {[%clk 0:00:31.2]} 34. Qa5 {[%clk 0:01:37.9]} 34... g6
{[%clk 0:00:24.2]} 35. Qd5+ {[%clk 0:01:35.8]} 35... Kg7 {[%clk 0:00:21.2]} 36.
Qxb7+ {[%clk 0:01:35.4]} 36... Kh6 {[%clk 0:00:21.4]} 37. Bh4 {[%clk 0:01:32.6]}
37... Qe6 {[%clk 0:00:05]} 38. Bg5# {[%clk 0:01:31.7]} 1-0

[Event "*** Titled Tuesday Blitz"]
[Site "Chess.com"]
[Date "2020.05.12"]
[Round "10"]
[White "AsselLesbekova"]
[Black "Vamostodorecto"]
[Result "1-0"]
[WhiteElo "2274"]
[BlackElo "2419"]
[TimeControl "180+1"]
[EndTime "11:52:26 PDT"]
[Termination "AsselLesbekova won on time"]

1. e4 {[%clk 0:03:00.9]} 1... e5 {[%clk 0:02:53.3]} 2. Nf3 {[%clk 0:03:00.5]}
2... Nc6 {[%clk 0:02:53.5]} 3. d4 {[%clk 0:03:00.6]} 3... exd4 {[%clk
0:02:54.4]} 4. Nxd4 {[%clk 0:03:01.5]} 4... Nf6 {[%clk 0:02:53.7]} 5. Nxc6
{[%clk 0:03:00.8]} 5... bxc6 {[%clk 0:02:54.6]} 6. Qe2 {[%clk 0:03:00.7]} 6...
d6 {[%clk 0:02:24.2]} 7. e5 {[%clk 0:02:52.2]} 7... dxe5 {[%clk 0:02:15.6]} 8.
Qxe5+ {[%clk 0:02:53.1]} 8... Be6 {[%clk 0:02:16.2]} 9. Bd3 {[%clk 0:02:33.6]}
9... Bd6 {[%clk 0:02:14.7]} 10. Qa5 {[%clk 0:02:28.9]} 10... h6 {[%clk
0:02:06.2]} 11. O-O {[%clk 0:02:28.2]} 11... O-O {[%clk 0:01:54.6]} 12. Nc3
{[%clk 0:02:20.6]} 12... Rb8 {[%clk 0:01:50.1]} 13. a3 {[%clk 0:02:19.2]} 13...
Ng4 {[%clk 0:00:54]} 14. h3 {[%clk 0:02:15.7]} 14... Bh2+ {[%clk 0:00:44.7]} 15.
Kh1 {[%clk 0:02:14]} 15... Qh4 {[%clk 0:00:42]} 16. f3 {[%clk 0:02:02.5]} 16...
Bd6 {[%clk 0:00:29.7]} 17. Ne4 {[%clk 0:01:38.5]} 17... Nf6 {[%clk 0:00:21.8]}
18. Nxd6 {[%clk 0:01:36.5]} 18... cxd6 {[%clk 0:00:22.7]} 19. Qe1 {[%clk
0:01:33]} 19... Qh5 {[%clk 0:00:19.6]} 20. b4 {[%clk 0:01:31.2]} 20... Rfe8
{[%clk 0:00:18.8]} 21. Qg3 {[%clk 0:01:28.4]} 21... Nd5 {[%clk 0:00:16.1]} 22.
Bb2 {[%clk 0:01:24.6]} 22... g6 {[%clk 0:00:03.1]} 23. Qxd6 {[%clk 0:01:19.5]}
23... Ne3 {[%clk 0:00:03.3]} 24. Qd4 {[%clk 0:01:12.8]} 1-0